fUSD/lending_fUSD_20260311
["ID","MTS","AMOUNT","RATE_DAILY","PERIOD"]
[408217386,1773250242543,-856.35975491,0.0002,2]
[408217388,1773250242758,-303.81518612,0.0002,2]
[408217389,1773250242972,-43335.66861289,0.0002,2]
[408217390,1773250242983,-937.70955075,0.0002,2]
[408217406,1773250245303,-504.75795,0.0002,2]
[408217407,1773250245315,-11561.15798416,0.0002,2]
[408217408,1773250245361,-169580.58495871,0.0002,2]
[408217409,1773250245576,-421.9602,0.0002,2]
[408217410,1773250245588,-41758.94812058,0.0002,2]
[408217411,1773250245630,-2354.04667241,0.0002,2]
[408217424,1773250899878,223.81,9.112e-05,2]
[408217425,1773250900078,223.81,9.591e-05,2]
[408217426,1773250900308,223.81,0.00010071,2]
[408217427,1773250900502,223.81,0.0001055,2]
[408217428,1773250900729,223.81,0.0001103,2]
[408217429,1773250900956,223.81,0.0001151,2]
[408217430,1773250901177,223.81,0.00011989,2]
[408217431,1773250901515,223.81,0.00012469,2]
[408217432,1773250901944,223.81,0.00012948,2]
[408217433,1773250901971,223.81,0.00013428,2]
[408217434,1773250902142,223.81,0.00013907,2]
[408217435,1773250902391,223.81,0.00014387,2]
[408217441,1773251431520,-223.81,0.00014866,2]
[408217442,1773251431529,-223.81,0.00015346,2]
[408217443,1773251431540,-223.81,0.00015826,2]
[408217444,1773251431550,-1251.46332272,0.00016116,2]
[408217445,1773251431559,-223.81,0.00016305,2]
[408217446,1773251431568,-300.0,0.00016352,2]
[408217447,1773251431578,-1200.0,0.00016352,2]
[408217448,1773251431587,-600.0,0.00016353,2]
[408217449,1773251431597,-250.0,0.00016353,2]
[408217450,1773251431606,-300.0,0.00016353,2]
[408217451,1773251431615,-300.0,0.00016353,2]
[408217452,1773251431625,-342.0208413,0.00016353,2]
[408217453,1773251431634,-500.0,0.00016353,2]
[408217454,1773251431644,-5000.0,0.00016353,2]
[408217455,1773251431657,-300.0,0.00016353,2]
[408217456,1773251431666,-356.81305268,0.00016353,2]
[408217457,1773251431675,-450.0,0.00016353,2]
[408217458,1773251431685,-223.81,0.00016785,2]
[408217459,1773251431694,-377.45749,0.00016917,7]
[408217460,1773251431704,-3103.180686,0.00017,2]
[408217461,1773251431717,-511.0,0.00017,2]
[408217462,1773251431727,-166.66,0.00017112,2]
[408217463,1773251431736,-223.81,0.00017264,2]
[408217464,1773251431747,-201.0,0.00017393,2]
[408217465,1773251431757,-426.0,0.00017444,2]
[408217466,1773251431766,-166.66,0.00017472,2]
[408217467,1773251431776,-499.10210264,0.00017636,2]
[408217468,1773251431787,-223.81,0.00017744,2]
[408217470,1773251431796,-801.97398632,0.00017808,2]
[408217471,1773251431805,-166.66,0.00017832,2]
[408217472,1773251431815,-300.0,0.00017872,2]
[408217473,1773251431824,-500.0,0.00017945,2]
[408217474,1773251431834,-1680.0,0.00017961,2]
[408217475,1773251431843,-1312.06159256,0.00018082,2]
[408217476,1773251431854,-913.15,0.0001811,2]
[408217477,1773251431863,-3686.79,0.0001811,2]
[408217478,1773251431873,-1184.7,0.00018117,2]
[408217479,1773251431883,-150.0,0.00018175,2]
[408217480,1773251431894,-150.0,0.00018175,2]
[408217481,1773251431903,-166.66,0.00018193,2]
[408217482,1773251431913,-223.81,0.00018223,2]
[408217483,1773251431922,-150.0,0.0001823,2]
[408217484,1773251431931,-150.0,0.0001823,2]
[408217485,1773251431940,-150.0,0.00018285,2]
[408217486,1773251431950,-200.0,0.00018285,2]
[408217487,1773251431959,-2000.0,0.00018293,2]
[408217488,1773251431968,-500.0,0.00018339,2]
[408217489,1773251431977,-150.0,0.00018339,2]
[408217490,1773251431986,-150.0,0.00018339,2]
[408217491,1773251431995,-150.0,0.00018339,2]
[408217492,1773251432005,-150.0,0.00018339,2]
[408217493,1773251432015,-150.0,0.00018339,2]
[408217494,1773251432023,-150.0,0.00018339,2]
[408217495,1773251432032,-150.0,0.00018339,2]
[408217496,1773251432045,-500.0,0.00018339,2]
[408217497,1773251432054,-150.0,0.00018339,2]
[408217498,1773251432064,-150.10489082,0.00018339,2]
[408217499,1773251432073,-150.0,0.00018339,2]
[408217500,1773251432082,-500.0,0.00018339,2]
[408217501,1773251432091,-500.0,0.00018339,2]
[408217502,1773251432101,-500.0,0.00018339,2]
[408217503,1773251432110,-500.0,0.00018339,2]
[408217504,1773251432118,-150.0,0.00018339,2]
[408217505,1773251432128,-651.0,0.00018339,2]
[408217506,1773251432137,-150.0,0.00018339,2]
[408217507,1773251432145,-150.0,0.00018339,2]
[408217508,1773251432155,-150.0,0.00018339,2]
[408217509,1773251432163,-150.0,0.00018339,2]
[408217510,1773251432173,-500.0,0.00018339,2]
[408217511,1773251432182,-500.0,0.00018339,2]
[408217512,1773251432191,-150.0,0.00018339,2]
[408217513,1773251432200,-500.0,0.00018339,2]
[408217514,1773251432209,-150.0,0.00018339,2]
[408217515,1773251432218,-500.0,0.00018339,2]
[408217516,1773251432227,-500.0,0.00018339,2]
[408217517,1773251432236,-150.0,0.00018339,2]
[408217518,1773251432245,-150.0,0.00018339,2]
[408217519,1773251432255,-504.94778395,0.00018367,2]
[408217520,1773251432264,-850.0,0.00018367,2]
[408217521,1773251432273,-500.0,0.00018394,2]
[408217522,1773251432282,-150.0,0.00018394,2]
[408217523,1773251432291,-150.0,0.00018394,2]
[408217524,1773251432300,-150.0,0.00018394,2]
[408217525,1773251432310,-150.0,0.00018394,2]
[408217526,1773251432319,-232.79888752,0.00018394,2]
[408217527,1773251432329,-150.0,0.00018394,2]
[408217528,1773251432338,-150.0,0.00018394,2]
[408217529,1773251432348,-500.0,0.00018394,2]
[408217530,1773251432358,-150.0,0.00018394,2]
[408217531,1773251432368,-150.0,0.00018394,2]
[408217532,1773251432377,-500.0,0.00018394,2]
[408217533,1773251432387,-500.0,0.00018394,2]
[408217534,1773251432396,-500.0,0.00018394,2]
[408217535,1773251432405,-500.0,0.00018394,2]
[408217536,1773251432414,-651.0,0.00018394,2]
[408217537,1773251432428,-150.0,0.00018394,2]
[408217538,1773251432437,-150.0,0.00018394,2]
[408217539,1773251432447,-500.0,0.00018394,2]
[408217540,1773251432458,-500.0,0.00018394,2]
[408217541,1773251432467,-500.0,0.00018394,2]
[408217542,1773251432477,-500.0,0.00018394,2]
[408217543,1773251432487,-500.0,0.00018394,2]
[408217544,1773251432497,-150.0,0.00018394,2]
[408217545,1773251432506,-500.0,0.00018394,2]
[408217546,1773251432515,-150.0,0.00018394,2]
[408217547,1773251432526,-204.61846768,0.00018449,2]
[408217548,1773251432535,-150.0,0.00018449,2]
[408217549,1773251432545,-150.0,0.00018449,2]
[408217550,1773251432554,-150.0,0.00018449,2]
[408217551,1773251432564,-150.0,0.00018449,2]
[408217552,1773251432574,-500.0,0.00018449,2]
[408217553,1773251432584,-237.75178681,0.00018449,2]
[408217554,1773251432594,-150.0,0.00018449,2]
[408217555,1773251432603,-350.0,0.00018449,2]
[408217556,1773251432613,-500.0,0.00018449,2]
[408217557,1773251432622,-150.0,0.00018449,2]
[408217558,1773251432631,-500.0,0.00018449,2]
[408217559,1773251432641,-651.0,0.00018449,2]
[408217560,1773251432650,-200.0,0.00018449,2]
[408217561,1773251432660,-500.0,0.00018449,2]
[408217562,1773251432669,-200.0,0.00018449,2]
[408217563,1773251432679,-500.0,0.00018449,2]
[408217564,1773251432688,-500.0,0.00018449,2]
[408217565,1773251432701,-500.0,0.00018449,2]
[408217566,1773251432711,-150.0,0.00018449,2]
[408217567,1773251432731,-500.0,0.00018449,2]
[408217568,1773251432740,-500.0,0.00018449,2]
[408217569,1773251432750,-200.0,0.00018449,2]
[408217570,1773251432760,-200.0,0.00018503,2]
[408217571,1773251432769,-165.87618342,0.00018503,2]
[408217572,1773251432778,-150.0,0.00018503,2]
[408217573,1773251432788,-150.0,0.00018503,2]
[408217574,1773251432798,-500.0,0.00018503,2]
[408217575,1773251432807,-150.0,0.00018503,2]
[408217576,1773251432820,-500.0,0.00018503,2]
[408217577,1773251432829,-500.0,0.00018503,2]
[408217578,1773251432839,-651.0,0.00018503,2]
[408217579,1773251432848,-500.0,0.00018503,2]
[408217580,1773251432858,-500.0,0.00018503,2]
[408217581,1773251432867,-500.0,0.00018503,2]
[408217582,1773251432878,-150.0,0.00018503,2]
[408217583,1773251432888,-150.0,0.00018503,2]
[408217584,1773251432897,-500.0,0.00018503,2]
[408217585,1773251432906,-500.0,0.00018504,2]
[408217586,1773251432916,-492.13,0.00018526,2]
[408217587,1773251432925,-166.66,0.00018548,2]
[408217588,1773251432935,-166.66,0.00018553,2]
[408217589,1773251432944,-250.0,0.00018558,2]
[408217590,1773251432954,-176.29568284,0.00018558,2]
[408217591,1773251432963,-150.0,0.00018558,2]
[408217592,1773251432972,-500.0,0.00018558,2]
[408217593,1773251432982,-500.0,0.00018558,2]
[408217594,1773251432992,-651.0,0.00018558,2]
[408217595,1773251433001,-500.0,0.00018558,2]
[408217596,1773251433011,-323.0,0.00018558,2]
[408217597,1773251433021,-500.0,0.00018558,2]
[408217598,1773251433030,-500.0,0.00018558,2]
[408217599,1773251433039,-150.0,0.00018558,2]
[408217600,1773251433049,-500.0,0.00018558,2]
[408217601,1773251433059,-913.15,0.00018563,2]
[408217602,1773251433068,-51.8914203,0.00018578,2]
[408217603,1773251433081,-4861.42240212,0.00018578,2]
[408217604,1773251433091,-200.0,0.00018602,2]
[408217605,1773251433100,-151.0,0.00018602,2]
[408217606,1773251433110,-151.0,0.00018602,2]
[408217607,1773251433119,-151.0,0.00018602,2]
[408217608,1773251433128,-151.0,0.00018602,2]
[408217609,1773251433137,-151.0,0.00018602,2]
[408217610,1773251433146,-151.0,0.00018602,2]
[408217611,1773251433156,-151.0,0.00018602,2]
[408217612,1773251433165,-260.48870101,0.00018602,2]
[408217613,1773251433175,-250.0,0.00018613,2]
[408217614,1773251433185,-500.0,0.00018613,2]
[408217615,1773251433194,-500.0,0.00018613,2]
[408217616,1773251433208,-651.0,0.00018613,2]
[408217617,1773251433217,-500.0,0.00018613,2]
[408217618,1773251433227,-500.0,0.00018613,2]
[408217619,1773251433236,-500.0,0.00018613,2]
[408217620,1773251433246,-207.07135591,0.00018613,2]
[408217621,1773251433257,-254.99,0.00018613,2]
[408217622,1773251433266,-599.0,0.00018613,2]
[408217623,1773251433275,-2578.96,0.00018638,2]
[408217624,1773251433285,-500.0,0.00018668,2]
[408217625,1773251433295,-500.0,0.00018668,2]
[408217626,1773251433305,-651.0,0.00018668,2]
[408217627,1773251433315,-500.0,0.00018668,2]
[408217628,1773251433325,-500.0,0.00018668,2]
[408217629,1773251433334,-500.0,0.00018668,2]
[408217630,1773251433344,-17721.53,0.00018675,2]
[408217631,1773251433354,-500.0,0.00018723,2]
[408217632,1773251433363,-487.0,0.00018723,2]
[408217633,1773251433372,-651.0,0.00018723,2]
[408217634,1773251433382,-500.0,0.00018723,2]
[408217635,1773251433392,-500.0,0.00018723,2]
[408217636,1773251433401,-500.0,0.00018723,2]
[408217637,1773251433412,-500.0,0.00018777,2]
[408217638,1773251433422,-651.0,0.00018777,2]
[408217639,1773251433432,-500.0,0.00018777,2]
[408217640,1773251433441,-500.0,0.00018832,2]
[408217641,1773251433451,-651.0,0.00018832,2]
[408217642,1773251433461,-500.0,0.00018832,2]
[408217643,1773251433471,-500.0,0.00018887,2]
[408217644,1773251433480,-651.0,0.00018887,2]
[408217645,1773251433490,-500.0,0.00018887,2]
[408217646,1773251433499,-254.99,0.00018887,2]
[408217647,1773251433508,-166.66,0.00018913,2]
[408217648,1773251433518,-500.0,0.00018942,2]
[408217649,1773251433529,-651.0,0.00018942,2]
[408217650,1773251433540,-407.0,0.00018942,2]
[408217651,1773251433549,-36870.06281164,0.00018962,2]
[408217652,1773251433562,-6604.88708836,0.00018962,2]
[408217653,1773251433571,-651.0,0.00018997,2]
[408217654,1773251433581,-631.22423025,0.00018997,2]
[408217655,1773251433591,-913.15,0.00019016,2]
[408217656,1773251433603,-651.0,0.00019051,2]
[408217657,1773251433613,-651.0,0.00019106,2]
[408217658,1773251433622,-166.66,0.0001916,2]
[408217659,1773251433632,-651.0,0.00019161,2]
[408217660,1773251433641,-254.99,0.00019161,2]
[408217661,1773251433650,-651.0,0.00019216,2]
[408217662,1773251433660,-651.0,0.00019271,2]
[408217663,1773251433670,-651.0,0.00019325,2]
[408217664,1773251433679,-651.0,0.0001938,2]
[408217665,1773251433689,-226.0,0.00019432,2]
[408217666,1773251433698,-651.0,0.00019435,2]
[408217667,1773251433709,-254.99,0.00019435,2]
[408217668,1773251433721,-913.15,0.00019469,2]
[408217669,1773251433730,-293.20280899,0.0001949,2]
[408217670,1773251433743,-357.79719101,0.0001949,2]
[408217671,1773251433754,-2000.0,0.000195,2]
[408217672,1773251433764,-651.0,0.00019544,2]
[408217673,1773251433775,-659.27959608,0.00019599,2]
[408217674,1773251433785,-823.820744,0.000196,2]
[408217675,1773251433795,-700.0,0.000196,7]
[408217676,1773251433804,-1500.0,0.000197,7]
[408217677,1773251433814,-255.03664044,0.00019709,2]
[408217678,1773251433822,-597.0,0.00019729,2]
[408217679,1773251433832,-166.66,0.00019772,2]
[408217680,1773251433841,-23415.28069445,0.000198,2]
[408217681,1773251433853,-462.11065713,0.000198,2]
[408217682,1773251433864,-2456.03644842,0.000198,2]
[408217683,1773251433873,-2200.0,0.000198,7]
[408217684,1773251433882,-1999.0,0.00019801,2]
[408217685,1773251433891,-500.0,0.0001989,2]
[408217686,1773251433902,-500.0,0.00019899,2]
[408217687,1773251433911,-500.0,0.00019899,2]
[408217688,1773251433921,-500.0,0.00019899,2]
[408217689,1773251433931,-373.98036064,0.00019899,2]
[408217690,1773251433940,-500.0,0.00019899,2]
[408217691,1773251433949,-500.0,0.00019899,2]
[408217692,1773251433958,-500.0,0.00019899,2]
[408217693,1773251433967,-500.0,0.00019899,2]
[408217694,1773251433978,-114.53990391,0.00019899,2]
[408217695,1773251433990,-385.46009609,0.00019899,2]
[408217696,1773251434001,-500.0,0.00019899,2]
[408217697,1773251434011,-284.90003205,0.00019899,2]
[408217698,1773251434022,-215.09996795,0.00019899,2]
[408217699,1773251434032,-120.01944425,0.00019899,2]
[408217700,1773251434044,-379.98055575,0.00019899,2]
[408217701,1773251434053,-151.11237134,0.000199,5]
[408217702,1773251434063,-401.53899706,0.000199,2]
[408217703,1773251434072,-467.36807585,0.000199,7]
[408217704,1773251434084,-940.55617831,0.000199,7]
[408217705,1773251434095,-1518.79195812,0.000199,7]
[408217706,1773251434108,-73.28378772,0.000199,7]
[408217707,1773251434118,-405.22558294,0.000199,2]
[408217708,1773251434128,-98.60923392,0.000199,2]
[408217709,1773251434140,-449.9860301,0.000199,2]
[408217710,1773251434149,-558.49670729,0.000199,2]
[408217711,1773251434159,-256.61473022,0.000199,2]
[408217712,1773251434169,-734.9025324,0.00019922,2]
[408217713,1773251434181,-178.2474676,0.00019922,2]
[408217714,1773251434190,-332.42316978,0.00019973,2]
[408217715,1773251434201,-3108.57683022,0.00019973,2]
[408217716,1773251434210,-500.0,0.00019973,2]
[408217717,1773251434220,-500.0,0.00019973,2]
[408217718,1773251434229,-500.0,0.00019973,2]
[408217719,1773251434238,-500.0,0.00019973,2]
[408217720,1773251434249,-512.6518,0.00019973,2]
[408217721,1773251434258,-501.38283497,0.00019973,2]
[408217722,1773251434271,-194.53489522,0.0001999,2]
[408217723,1773251434280,-151.0,0.00019997,2]
[408217724,1773251434289,-151.0,0.00019997,2]
[408217725,1773251434298,-500.0,0.00019999,2]
[408217726,1773251434307,-500.0,0.00019999,2]
[408217727,1773251434317,-500.0,0.00019999,2]
[408217728,1773251434327,-500.0,0.00019999,2]
[408217729,1773251434336,-350.0,0.00019999,2]
[408217730,1773251434345,-150.0,0.00019999,2]
[408217731,1773251434354,-500.0,0.00019999,2]
[408217732,1773251434369,-500.0,0.00019999,2]
[408217733,1773251434382,-520.04,0.00019999,2]
[408217734,1773251434391,-500.0,0.00019999,2]
[408217735,1773251434400,-500.0,0.00019999,2]
[408217736,1773251434409,-500.0,0.00019999,2]
[408217737,1773251434418,-500.0,0.00019999,2]
[408217738,1773251434428,-500.0,0.00019999,2]
[408217739,1773251434437,-500.0,0.00019999,2]
[408217740,1773251434447,-455.71019482,0.00019999,2]
[408217741,1773251434456,-500.0,0.00019999,2]
[408217742,1773251434466,-507.73038979,0.00019999,2]
[408217743,1773251434476,-500.0,0.00019999,2]
[408217744,1773251434486,-500.0,0.00019999,2]
[408217745,1773251434495,-500.0,0.00019999,2]
[408217746,1773251434505,-500.0,0.00019999,2]
[408217747,1773251434514,-500.0,0.00019999,2]
[408217748,1773251434524,-500.0,0.00019999,2]
[408217749,1773251434536,-500.0,0.00019999,2]
[408217750,1773251434546,-500.0,0.00019999,2]
[408217751,1773251434556,-500.0,0.00019999,2]
[408217752,1773251434567,-500.0,0.00019999,2]
[408217753,1773251434576,-256.7373123,0.00019999,2]
[408217754,1773251434587,-459.39146792,0.00019999,2]
[408217755,1773251434596,-574.07206037,0.00019999,2]
[408217756,1773251434606,-500.0,0.00019999,2]
[408217757,1773251434615,-500.0,0.00019999,2]
[408217758,1773251434624,-500.0,0.00019999,2]
[408217759,1773251434633,-412.92776923,0.00019999,2]
[408217760,1773251434642,-310.90041889,0.00019999,2]
[408217761,1773251434652,-255.48379823,0.00019999,2]
[408217762,1773251434662,-249.41231141,0.00019999,2]
[408217763,1773251434672,-500.0,0.00019999,2]
[408217764,1773251434681,-500.0,0.00019999,2]
[408217765,1773251434690,-594.07319772,0.00019999,2]
[408217766,1773251434700,-500.0,0.00019999,2]
[408217767,1773251434711,-500.0,0.00019999,2]
[408217768,1773251434724,-500.0,0.00019999,2]
[408217769,1773251434734,-500.0,0.00019999,2]
[408217770,1773251434743,-290.15326702,0.00019999,2]
[408217771,1773251434753,-500.0,0.00019999,2]
[408217772,1773251434764,-500.0,0.00019999,2]
[408217773,1773251434774,-490.50271498,0.00019999,2]
[408217774,1773251434786,-500.0,0.00019999,2]
[408217775,1773251434796,-177.94785083,0.00019999,2]
[408217776,1773251434806,-506.38605661,0.00019999,2]
[408217777,1773251434816,-500.0,0.00019999,2]
[408217778,1773251434826,-340.34081779,0.00019999,2]
[408217779,1773251434835,-500.0,0.00019999,2]
[408217780,1773251434845,-500.0,0.00019999,2]
[408217781,1773251434854,-500.0,0.00019999,2]
[408217782,1773251434864,-2066738.89158893,0.0002,2]
[408217783,1773251434877,-265.13847175,0.0002,2]
[408217784,1773251437584,-8849.29004784,0.0002,2]
[408217785,1773251437596,-2357.26706174,0.0002,2]
[408217786,1773251437604,-150.3098345,0.0002,2]
[408217787,1773251437612,-187.0,0.0002,2]
[408217788,1773251437621,-428.29351298,0.0002,2]
[408217789,1773251437691,-22454.13610802,0.0002,2]
[408217790,1773251437701,-82345.71505419,0.0002,2]
[408217791,1773251437714,-825.89185212,0.0002,2]
[408217792,1773251437743,-690.45,0.0002,2]
[408217793,1773251437756,-269.12830918,0.0002,2]
[408217794,1773251437852,-618.6790189,0.0002,2]
[408217795,1773251437864,-2551.37717264,0.0002,2]
[408217813,1773251439888,-261615.57585921,0.0002,2]
[408217814,1773251439899,-30385.97690796,0.0002,2]
[408217815,1773251439909,-11750.9328771,0.0002,2]
[408217816,1773251439919,-1315.91612491,0.0002,2]
[408217817,1773251439928,-200.0,0.0002,2]
[408217818,1773251439937,-151.0,0.0002,2]
[408217819,1773251439946,-155.904935,0.0002,2]
[408217820,1773251439955,-151.0,0.0002,2]
[408217821,1773251439965,-151.0,0.0002,2]
[408217822,1773251439974,-151.0,0.0002,2]
[408217823,1773251439983,-151.0,0.0002,2]
[408217824,1773251439995,-162.677661,0.0002,2]
[408217825,1773251440006,-201.117256,0.0002,2]
[408217826,1773251440015,-162.677661,0.0002,2]
[408217827,1773251440024,-162.677661,0.0002,2]
[408217828,1773251440033,-162.677661,0.0002,2]
[408217829,1773251440042,-339.452692,0.0002,2]
[408217830,1773251440051,-151.0,0.0002,2]
[408217831,1773251440060,-151.0,0.0002,2]
[408217832,1773251440070,-150.0,0.0002,2]
[408217833,1773251440079,-6470.77,0.0002,2]
[408217834,1773251440088,-168.0,0.0002001,2]
[408217835,1773251440098,-1000.0,0.00020075,2]
[408217836,1773251440107,-954.0,0.00020104,2]
[408217837,1773251440115,-526.34189012,0.00020112,2]
[408217838,1773251440124,-168.0,0.00020212,2]
[408217839,1773251440134,-168.0,0.00020229,2]
[408217840,1773251440143,-168.0,0.00020238,2]
[408217841,1773251440151,-954.0,0.00020288,2]
[408217842,1773251440161,-859.31471271,0.00020349,2]
[408217843,1773251440173,-639.38778338,0.00020349,2]
[408217844,1773251440185,-500.29750391,0.00020349,2]
[408217845,1773251440195,-166.66,0.00020384,2]
[408217846,1773251440204,-168.0,0.000204,2]
[408217847,1773251440215,-168.0,0.00020456,2]
[408217848,1773251440224,-168.0,0.00020497,2]
[408217849,1773251440234,-168.0,0.000205,2]
[408217850,1773251440243,-327.67,0.00020504,2]
[408217851,1773251440253,-954.0,0.00020518,2]
[408217852,1773251440263,-168.0,0.0002054,2]
[408217853,1773251440272,-2000.0,0.0002057,2]
[408217854,1773251440283,-172.95802059,0.00020661,2]
[408217855,1773251440293,-160.0,0.00020661,2]
[408217856,1773251440302,-511.0,0.00020706,5]
[408217857,1773251440311,-168.0,0.000208,2]
[408217859,1773251440321,-168.0,0.00020817,2]
[408217860,1773251440330,-492.13,0.00020842,2]
[408217861,1773251440339,-166.66,0.00020997,2]
[408217862,1773251440349,-954.0,0.00021073,2]
[408217863,1773251440359,-168.0,0.0002112,2]
[408217864,1773251440372,-168.0,0.00021238,2]
[408217865,1773251440382,-327.67,0.00021395,2]
[408217866,1773251440392,-176.8920594,0.00021404,2]
[408217867,1773251440403,-166.66,0.00021609,2]
[408217868,1773251440412,-354.32700199,0.00021642,2]
[408217869,1773251440422,-299.99,0.00021757,7]
[408217870,1773251440431,-9999.99,0.00021757,2]
[408217871,1773251440440,-150.99,0.00021757,2]
[408217872,1773251440450,-7655.43,0.00021757,2]
[408217873,1773251440460,-4999.99,0.00021757,2]
[408217874,1773251440469,-1477.05,0.00021757,2]
[408217876,1773251440478,-1782.71,0.00021757,2]
[408217877,1773251440487,-155.82,0.00021918,2]
[408217878,1773251440497,-5000.0,0.00021918,2]
[408217879,1773251440506,-2037.61476782,0.00022214,10]
[408217880,1773251440516,-500.0,0.00022748,2]
[408217881,1773251440526,-500.0,0.00022748,2]
[408217882,1773251440538,-500.0,0.00022748,2]
[408217883,1773251440548,-500.0,0.00022748,2]
[408217884,1773251440557,-270.0,0.00022749,2]
[408217885,1773251440566,-200.0,0.00022749,2]
[408217886,1773251440576,-150.0,0.00022749,2]
[408217887,1773251440585,-150.0,0.00022749,2]
[408217888,1773251440594,-150.0,0.00022749,2]
[408217889,1773251440604,-150.0,0.00022749,2]
[408217890,1773251440613,-150.0,0.00022749,2]
[408217891,1773251440622,-1042.0,0.00022749,2]
[408217892,1773251440632,-3506.0,0.00022749,2]
[408217893,1773251440641,-619.0,0.00022749,2]
[408217894,1773251440650,-1342.0,0.00022749,2]
[408217895,1773251440660,-163.314,0.00022749,2]
[408217896,1773251440669,-150.571,0.00022749,2]
[408217897,1773251440680,-1213.0,0.00022749,2]
[408217898,1773251440689,-1299.441,0.00022749,2]
[408217899,1773251440699,-5996.0,0.00022749,2]
[408217900,1773251440710,-3751.0,0.00022749,2]
[408217901,1773251440722,-414.0,0.00022749,2]
[408217902,1773251440732,-160.0,0.00022768,2]
[408217903,1773251440741,-160.0,0.00022768,2]
[408217904,1773251440751,-160.45403572,0.00022768,2]
[408217905,1773251440761,-152.0,0.00022768,2]
[408217906,1773251440771,-152.0,0.00022768,2]
[408217907,1773251440781,-405.2255829,0.00022853,2]
[408217908,1773251440793,-2000.0,0.00022856,2]
[408217909,1773251440803,-2475.98639776,0.00023027,2]
[408217910,1773251440812,-1516.0,0.00023075,2]
[408217911,1773251440822,-151.0,0.00023075,2]
[408217912,1773251440832,-1516.0,0.00023075,2]
[408217913,1773251440841,-166.0,0.00023075,2]
[408217914,1773251440850,-151.0,0.00023075,2]
[408217915,1773251440859,-1516.0,0.00023075,2]
[408217916,1773251440869,-153.92401772,0.00023075,2]
[408217917,1773251440878,-151.0,0.00023075,2]
[408217918,1773251440887,-1516.0,0.00023075,2]
[408217919,1773251440896,-151.0,0.00023075,2]
[408217920,1773251440906,-1516.0,0.00023075,2]
[408217921,1773251440915,-1654.30370298,0.00023075,2]
[408217922,1773251440925,-2621.9875347,0.00023127,2]
[408217923,1773251440935,-5105.7601859,0.00023139,2]
[408217924,1773251440944,-84633.8932088,0.00023139,2]
[408217925,1773251440953,-162.677661,0.00023139,2]
[408217926,1773251440963,-162.677661,0.00023139,2]
[408217927,1773251440972,-162.677661,0.00023139,2]
[408217928,1773251440981,-162.677661,0.00023139,2]
[408217929,1773251440990,-492.13,0.00023157,2]
[408217930,1773251440999,-2000.0,0.000232,2]
[408217931,1773251441008,-585.0444985,0.00023824,2]
[408217932,1773251441017,-1139.2490879,0.00023839,2]
[408217933,1773251441027,-18884.3741456,0.00023839,2]
[408217934,1773251441036,-500.0,0.00023918,2]
[408217935,1773251441045,-558.49670729,0.00023971,2]
[408217936,1773251441054,-511.0,0.00024412,8]
[408217937,1773251441063,-1000.0,0.00024658,2]
[408217938,1773251441072,-150.0,0.00024658,2]